Cogmind - Beta 11 @@@ ROGUE MODE // 2022.04.16 @ 22:49:21 Player: CrossedViper Result: Destroyed by G-67 Veteran with Plasma Rifle Performance ------------- Evolutions (7) 3500 Regions Visited (25) 5000 Robots Destroyed (445) 2225 Value Destroyed (19168) 19168 Prototype IDs (81) 1620 Alien Tech Used (7) 1400 Bonus (15663) 15663 TOTAL SCORE: 48576 Bonus ------- High Alert Combat Kills 4025 Follower Combat Kills 3456 Entered DSFs 500 Network Hubs Disabled 200 Aligned with FarCom 300 Met Imprinter 300 Was Imprinted 300 Built Enhanced Grunts 300 Met R17 at Cetus 500 Found Hidden Lab 3000 Used Core Reset Matrix 3000 Scanned by Researcher 500 Pursued by Intercept 500 Friendly Fire -1218 Cogmind --------- Core Integrity 0/1300 Matter 228/300 Energy 99/100 System Corruption 3% Temperature Cool (12) Movement Core (50) Location -3/Section 7 Parts ------- > --- POWER (2) -------- (None) > --- PROPULSION (4) --- (None) > --- UTILITY (11) ----- (None) > --- WEAPON (5) ------- (None) > --- INVENTORY (5) ---- Advanced Heat Sink Matter Compressor (13) Quantum Router Authchip [Processor] Compact HERF Cannon Peak State ------------ > --- POWER ------------ Cold Fusion Reactor Reinforced Quantum Reactor > --- PROPULSION ------- Centrium Heavy Treads Centrium Heavy Treads > --- UTILITY ---------- Huge Storage Unit Experimental Optical Array Makeshift Terrain Scanner Experimental Target Analyzer Experimental Core Analyzer Experimental Armor Integrity Analyzer Advanced Transmission Jammer Damper Plating > --- WEAPON ----------- Cooled Phase Cannon Cooled Phase Cannon Cooled Phase Cannon Cooled Phase Cannon Cooled Phase Cannon > --- INVENTORY -------- Particle Reactor Advanced Heavy Treads Centrium Heavy Treads Experimental Heat Sink Improved Cooling System High-capacity Storage Unit Matter Compressor Active Sensor Suite 0b10 Decoder Chip [Scout] Precision Energy Filter Centrium Medium Armor Plating Experimental Powered Armor Advanced Hacking Suite Quantum Router Authchip [Processor] Transdimensional Reconstructor Heavy Wave Gun Heavy Wave Gun Enhanced Quantum Rifle Cooled Phase Cannon Precision Rocket Launcher [Rating: 186] Favorites ----------- Power Cooled Ion Engine Engine Cooled Ion Engine Power Core Reinforced Fission Core Reactor Quantum Reactor Propulsion Armored Treads Treads Armored Treads Leg Aluminum Leg Wheel Wheel Flight Unit Cooled Cesium-ion Thruster Utility Huge Storage Unit Device Experimental Heat Sink Storage Huge Storage Unit Processor Experimental Core Analyzer Hackware System Shield Protection Centrium Medium Armor Plating Weapon Enhanced Autogun Energy Gun Heavy Wave Gun Energy Cannon Cooled Phase Cannon Ballistic Gun Enhanced Autogun Ballistic Cannon Compact Mass Driver Launcher Precision Grenade Launcher Impact Weapon Mace Build | -11 -10 -10 -10 -9 -8 -8 -7 -7 -7 -6 -6 -6 -6 -6 -6 -5 -5 -4 -4 -4 -4 -4 -3 -3 -3 ------- Run | Scr Mat Min Exi Min Mat Sto Fac Low Zio Pro Fac Ext Cet Arc Hub Fac DSF Fac Was Fac Arm Lab Res Qua Sec Slots Evolved 14 | . . . . . 4 . 2 . . . 2 . . . . 2 . 2 . . . . 2 . . Power 1 | . . . . . . . . . . . . . . . . . . 1 . . . . . . . Propulsion 2 | . . . . . 1 . . . . . . . . . . 1 . . . . . . . . . Utility 9 | . . . . . 3 . . . . . 2 . . . . 1 . 1 . . . . 2 . . Weapon 2 | . . . . . . . 2 . . . . . . . . . . . . . . . . . . Parts Attached 344 | 7 8 . 1 3 12 33 44 13 16 10 15 7 17 1 10 5 9 19 5 3 42 12 34 13 5 Power 29 | 1 . . . 1 2 4 1 . . 1 1 . 2 . . . . 2 2 1 7 . 2 2 . Engine 11 | 1 . . . 1 1 3 1 . . 1 1 . 1 . . . . . . . 1 . . . . Core 3 | . . . . . 1 1 . . . . . . . . . . . . . . . . 1 . . Reactor 15 | . . . . . . . . . . . . . 1 . . . . 2 2 1 6 . 1 2 . Propulsion 62 | 2 3 . . . 4 8 11 2 5 4 . 2 3 . 3 1 . . 2 . 4 . 3 4 1 Treads 52 | 2 . . . . . 8 10 2 5 4 . 2 3 . 3 1 . . 2 . 4 . 3 3 . Leg 8 | . 3 . . . 4 . . . . . . . . . . . . . . . . . . 1 . Wheel 1 | . . . . . . . . . . . . . . . . . . . . . . . . . 1 Hover . | . . . . . . . . . . . . . . . . . . . . . . . . . . Flight 1 | . . . . . . . 1 . . . . . . . . . . . . . . . . . . Utility 122 | 1 2 . 1 . 4 5 17 7 6 2 5 1 6 1 2 3 5 10 1 . 13 6 18 4 2 Device 62 | . 1 . . . 3 1 8 6 . 1 2 . 3 1 . 1 3 4 . . 7 3 12 4 2 Storage 6 | 1 1 . 1 . . 1 1 . . . . . . . . . . . . . 1 . . . . Processor 11 | . . . . . . . 4 . 3 . 1 . . . . 1 . 1 . . . . 1 . . Hackware 6 | . . . . . 1 . . . 2 . 1 . . . . . 1 . . . . . 1 . . Protection 37 | . . . . . . 3 4 1 1 1 1 1 3 . 2 1 1 5 1 . 5 3 4 . . Artifact . | . . . . . . . . . . . . . . . . . . . . . . . . . . Weapon 131 | 3 3 . . 2 2 16 15 4 5 3 9 4 6 . 5 1 4 7 . 2 18 6 11 3 2 Energy Gun 36 | 2 . . . . . 8 3 1 2 . 2 1 1 . 2 1 . 5 . 2 2 1 3 . . Energy Cannon 45 | . . . . . 2 4 1 1 1 . 3 1 4 . 1 . 2 . . . 12 5 7 . 1 Ballistic Gun 29 | 1 3 . . 1 . 1 10 2 2 2 3 1 1 . 1 . . 1 . . . . . . . Ballistic Cannon 2 | . . . . . . . . . . . . . . . . . 1 . . . . . . . 1 Launcher 18 | . . . . 1 . 2 1 . . 1 1 1 . . 1 . 1 1 . . 4 . 1 3 . Special Weapon . | . . . . . . . . . . . . . . . . . . . . . . . . . . Impact Weapon 1 | . . . . . . 1 . . . . . . . . . . . . . . . . . . . Slashing Weapon . | . . . . . . . . . . . . . . . . . . . . . . . . . . Piercing Weapon . | . . . . . . . . . . . . . . . . . . . . . . . . . . Special Melee Weapon . | . . . . . . . . . . . . . . . . . . . . . . . . . . Unidentified Prototypes 45 | . . . . . 1 6 7 . 4 . 3 . 5 . 1 . 1 . . . 6 4 4 2 1 Corrupted Parts 4 | . . . . . . . . . . 1 . . . . 3 . . . . . . . . . . System Corruption 26 | . . . . . . . . . . 3 . . . . 23 . . . . . . . . . . Parts Lost 58 | . 3 . . 1 2 5 3 5 . . . . . . 1 . . 6 . 1 2 1 12 16 . Power 8 | . . . . 1 1 1 . . . . . . . . . . . . . 1 . . 1 3 . Propulsion 10 | . 1 . . . 1 2 1 1 . . . . . . . . . . . . . . 1 3 . Utility 20 | . . . . . . 1 1 2 . . . . . . 1 . . 2 . . 2 1 4 6 . Weapon 20 | . 2 . . . . 1 1 2 . . . . . . . . . 4 . . . . 6 4 . Highest Loss Streak 5 | . 2 . . 1 2 4 2 5 . . . . . . 1 . . 3 . 1 1 1 3 5 . To Critical Strikes 2 | . . . . . . . . . . . . . . . . . . . . . . . 1 1 . Average Slot Usage (%) 90 | . 95 100 100 100 79 98 99 99 82 99 98 99 97 93 92 87 88 88 89 86 88 85 80 62 46 Engine 4 | . 14 14 14 14 3 6 7 7 7 7 6 6 4 . . . . . . . . . . . . Reactor 3 | . . . . . . . . . . . . . 1 6 6 5 5 9 10 7 9 10 7 6 4 Treads 15 | . 18 . . . . 21 22 22 23 23 20 20 18 13 12 10 11 10 10 10 9 10 9 5 . Leg 2 | . 9 28 28 28 22 5 . . . . . . . . . . . . . . . . . 2 4 Device 14 | . 9 14 14 14 18 19 17 14 11 7 18 17 13 13 12 10 16 15 15 15 15 13 11 10 13 Storage 6 | . 14 14 14 14 9 9 7 7 7 7 6 6 6 6 6 5 5 5 5 5 5 5 4 1 . Processor 11 | . . . . . . . 5 7 10 15 13 13 13 13 13 16 17 15 21 21 21 20 19 21 18 Hackware 1 | . . . . . 2 9 2 . . . . . . . . . . . . . . . . 3 . Protection 5 | . . . . . . 6 4 7 6 6 5 8 12 13 12 11 5 9 5 5 4 5 4 1 . Energy Gun 4 | . 7 . . . . 12 . . 3 7 8 10 10 6 5 4 5 5 21 21 6 . 1 1 . Energy Cannon 6 | . . . . . 13 3 . . 2 . . 1 10 20 19 17 17 13 . . 13 20 19 2 . Ballistic Gun 10 | . 20 28 28 28 4 . 29 28 6 22 17 11 4 . . . . . . . . . . . . Naked Turns 2 | . . . . . . . . . . . . . . . . . . . . . . . . . 2 Heaviest Build 224 | 14 31 31 51 49 58 97 110 114 111 111 137 143 159 161 162 142 142 166 145 137 178 186 224 182 32 Greatest Support 160 | 40 40 20 20 20 30 60 60 60 60 60 60 70 100 100 100 160 160 160 160 140 160 160 160 150 32 Greatest Overweight (x) 3 | . 3 1 2 2 2 1 1 1 1 1 2 2 2 1 1 . . 1 . . 1 1 1 1 3 Average Overweight (x) . | . . 1 1 2 1 . 1 1 1 1 1 1 1 1 1 . . . . . . . 1 . . Largest Inventory Capacity 25 | 8 15 15 20 20 20 25 25 25 25 25 25 25 25 25 25 25 25 25 25 25 25 25 25 25 5 Average Capacity 23 | 7 14 15 18 20 20 22 25 25 25 25 25 25 25 25 25 25 25 25 25 25 25 25 25 12 5 Most Carried 25 | 4 15 15 18 15 20 25 25 25 25 25 25 25 25 25 25 25 24 25 25 25 25 23 25 15 5 Average Carried 21 | 2 6 15 15 14 17 20 24 23 23 24 24 24 24 25 24 20 22 22 24 24 24 22 19 7 4 Final Capacity 25 | 8 15 15 20 20 20 25 25 25 25 25 25 25 25 25 25 25 25 25 25 25 25 25 25 5 5 Final Carried 25 | 2 15 15 15 14 20 25 25 19 25 25 24 25 25 25 25 21 24 25 25 24 23 23 11 4 5 Class Distribution -------------------- 42% | Scavenger-Gunner 21% | Scavenger-Mutant 10% | Gunner 9% | Mutant 9% | Alien-Gunner 3% | Scavenger-Tank Dominant Class ---------------- Mutant | -10/Materials Mutant | -10/Mines Mutant | -10/Exiles Mutant | -9/Mines Scavenger-Mutant | -8/Materials Scavenger-Mutant | -8/Storage Scavenger-Gunner | -7/Factory Scavenger-Gunner | -7/Lower Caves Scavenger-Mutant | -7/Zion Scavenger-Gunner | -6/Proximity Caves Scavenger-Gunner | -6/Factory Scavenger-Gunner | -6/Extension Scavenger-Gunner | -6/Cetus Scavenger-Gunner | -6/Archives Scavenger-Gunner | -6/Hub_04(d) Scavenger-Gunner | -5/Factory Scavenger-Gunner | -5/DSF Scavenger-Gunner | -4/Factory Scavenger-Gunner | -4/Waste Scavenger-Gunner | -4/Factory Gunner | -4/Armory Alien-Gunner | -4/Lab Alien-Gunner | -3/Research Scavenger-Mutant | -3/Quarantine Scavenger-Mutant | -3/Section 7 Resources | -11 -10 -10 -10 -9 -8 -8 -7 -7 -7 -6 -6 -6 -6 -6 -6 -5 -5 -4 -4 -4 -4 -4 -3 -3 -3 ----------- Run | Scr Mat Min Exi Min Mat Sto Fac Low Zio Pro Fac Ext Cet Arc Hub Fac DSF Fac Was Fac Arm Lab Res Qua Sec Matter Collected 9446 | 270 118 . 40 36 252 395 2538 728 498 656 1074 285 316 10 156 . 162 232 84 77 786 76 249 150 258 Remotely . | . . . . . . . . . . . . . . . . . . . . . . . . . . Salvage Created 22278 | . 320 . . 18 425 1503 3194 676 . 969 1163 791 386 64 1376 . 244 3356 584 555 2620 76 3314 623 21 Parts 958 | . 16 . . 1 19 78 168 26 . 45 53 32 18 4 54 . 14 126 10 11 121 1 135 22 4 Haulers Intercepted 21 | . . . . . . 6 5 . . . 2 1 . . 3 . . 1 . 1 . . 2 . . Recyclers Shooed 10 | . . . . . 3 2 1 . . . 1 . . . . . . 1 . 1 . . 1 . . Parts Field Recycled . | . . . . . . . . . . . . . . . . . . . . . . . . . . Retrieved Matter . | . . . . . . . . . . . . . . . . . . . . . . . . . . Parts Self-Destructed 68 | . . . . . . . . 26 2 40 . . . . . . . . . . . . . . . Prevented 13 | . . . . . . . . . . 13 . . . . . . . . . . . . . . . Kills | -11 -10 -10 -10 -9 -8 -8 -7 -7 -7 -6 -6 -6 -6 -6 -6 -5 -5 -4 -4 -4 -4 -4 -3 -3 -3 ------- Run | Scr Mat Min Exi Min Mat Sto Fac Low Zio Pro Fac Ext Cet Arc Hub Fac DSF Fac Was Fac Arm Lab Res Qua Sec Combat Hostiles Destroyed 299 | . 6 . . 3 6 21 36 17 . 24 9 11 5 1 13 . 7 35 2 4 45 1 40 13 . Melee 1 | . . . . . . . . . . . . . . . . . . . . . 1 . . . . Guns 116 | . 6 . . 1 1 9 32 17 . 15 9 6 2 . 1 . . 2 2 4 6 . 2 1 . Cannons 117 | . . . . . 5 9 . . . . . . 2 1 6 . 4 27 . . 29 . 34 . . AOE 49 | . . . . 2 . 3 4 . . 9 . 5 . . 4 . 3 . . . 5 . 3 11 . Classes Destroyed 25 | . 2 . . 1 2 5 6 . . 2 . 1 . . . . 1 . 1 . 2 . . 2 . Worker 38 | . . . . . . 2 8 . . . 2 4 . . 6 . . 5 . 1 . . 3 7 . Builder 17 | . . . . . . 1 3 . . . 1 . . . 2 . . 3 . . . . 3 3 1 Tunneler 7 | . . . . . . . 3 . . . . 2 . . . . . 2 . . . . . . . Hauler 21 | . . . . . . 6 5 . . . 2 1 . . 3 . . 1 . 1 . . 2 . . Recycler 29 | . . . . . 1 4 10 . . . 3 1 . . 1 . . 4 . 1 . . 1 3 . Mechanic 4 | . . . . . . . 1 . . . . . . . 1 . . . . . 2 . . . . Operator 5 | . . . . . . 1 . . . . 2 . . . . . . . . . 1 . . 1 . Watcher 21 | . 2 . . . 1 2 4 . . . . . 2 . 1 . . 2 . 1 2 . 4 . . Swarmer 47 | . . . . 3 . 3 . 8 . 10 . 3 . . . . 5 . . . 10 . 5 . . Saboteur 4 | . . . . . . . . . . . . . . . . . . . . . 4 . . . . Grunt 102 | . 6 . . . 4 6 13 7 . 7 2 6 1 . 6 . . 19 . 1 13 . 9 2 . Brawler 6 | . . . . . . . . . . 2 . . . . 1 . . 1 . . 2 . . . . Duelist 11 | . . . . . . 1 . . . 3 . . 1 . 1 . . 1 . . 4 . . . . Protector 5 | . . . . . . . 1 . . 1 . . . . . . . 1 . . 2 . . . . Researcher 2 | . . . . . . . . . . . . . . . . . . . . . . . . 2 . Sentry 41 | . . . . . 2 11 3 2 . 1 2 1 . 1 3 . . 3 . 1 3 . 6 2 . Specialist 1 | . . . . . . . . . . . . . . . . . 1 . . . . . . . . Hunter 23 | . . . . . . . 3 . . . 3 . 1 . 2 . . 4 . . 2 . 2 6 . Programmer 41 | . . . . . . . 14 . . . 2 . . . . . . 6 . 2 3 . 12 2 . Heavy 5 | . . . . . . . 2 . . . . . . . . . 1 . . . 2 . . . . Behemoth 2 | . . . . . . . . . . . . 1 . . . . . . . . . . 1 . . Compactor 2 | . . . . . . . . . . . . . . . . . . . 2 . . . . . . Cetus Guard 2 | . . . . . . . . . . . . . 2 . . . . . . . . . . . . Tracker 3 | . . . . . . . . . . . . . . . . . . . . . . . 3 . . Combat Programmer 2 | . . . . . . . . . . . . . . . . . . . . . . . 2 . . Alpha 7 1 | . . . . . . . . . . . . . . . . . . . . . . . . 1 . Z-Courier 1 | . . . . . . . . . . . . . . . . . . . . . . . 1 . . Fireman 1 | . . . . . . . . . . . . . . . . . . . . . 1 . . . . Mutant 1 | . . . . . . . . . . 1 . . . . . . . . . . . . . . . Best Kill Streak 22 | . 2 . . 3 4 12 9 5 . 13 4 6 3 1 14 . 5 14 1 3 10 1 10 22 1 Combat Bots Only 13 | . 2 . . 3 3 9 7 5 . 13 3 3 3 1 4 . 5 11 1 2 10 1 7 7 . Max Kills in Single Turn 18 | . 1 . . 2 1 1 3 2 . 3 1 3 1 1 8 . 3 3 1 2 2 1 3 18 1 Gunslinging 1 | . . . . . . . 1 1 . 1 . 1 . . . . . . . . . . . . . Exploded 6 | . . . . 2 . 1 2 . . 3 . 3 . . 2 . 3 . . . 2 . 3 6 . Melee 1 | . . . . . . . . . . . . . . . . . . . . . 1 . . . . Uniques/NPCs Destroyed 1 | . . . . . . . . . . . . . . . . . . . . . . 1 . . . A5 (-4/Lab) Combat | -11 -10 -10 -10 -9 -8 -8 -7 -7 -7 -6 -6 -6 -6 -6 -6 -5 -5 -4 -4 -4 -4 -4 -3 -3 -3 -------- Run | Scr Mat Min Exi Min Mat Sto Fac Low Zio Pro Fac Ext Cet Arc Hub Fac DSF Fac Was Fac Arm Lab Res Qua Sec Damage Taken 24269 | . 626 . . 138 517 1107 2295 907 . 735 401 371 199 32 494 . 103 2757 . 946 2950 342 5337 3990 22 Core 2452 | . 61 . . 31 64 181 280 88 . 57 23 25 . 13 48 . 13 126 . 54 189 . 418 759 22 Absorbed by Shields 413 | . . . . . . . 120 36 . . . 178 79 . . . . . . . . . . . . Reduced by Siege Mode 453 | . . . . . . . . . . . . . . . 4 . 5 60 . . 215 . 169 . . Regen/Repaired (Parts) 1027 | . . . . . . 98 134 . 795 . . . . . . . . . . . . . . . . Core Remaining (%) 72 | 100 . . . 63 . 55 . . . 39 . . . . 87 . 98 . . . . 67 . . . Volleys Fired 846 | . 28 . 2 4 32 81 134 33 1 29 43 28 18 3 29 . 15 75 7 15 102 11 102 23 31 Largest 5 | . 2 . 2 2 2 2 4 4 1 4 4 4 4 4 4 . 4 4 4 4 4 5 5 4 1 Hottest 396 | . 100 . 43 43 136 136 100 228 88 228 213 213 215 185 185 . 195 125 221 302 360 200 396 308 66 Shots Fired 2644 | . 56 . 4 7 64 155 519 132 1 98 156 84 68 10 97 . 54 265 26 57 304 28 388 40 31 Gun 1454 | . 56 . 4 6 20 90 515 129 1 93 151 75 48 1 22 . 12 56 26 57 50 . 31 11 . Cannon 1144 | . . . . . 44 59 . 3 . 1 3 4 20 9 71 . 41 207 . . 247 28 355 21 31 Launcher 46 | . . . . 1 . 6 4 . . 4 2 5 . . 4 . 1 2 . . 7 . 2 8 . Special . | . . . . . . . . . . . . . . . . . . . . . . . . . . Kinetic 980 | . 32 . 4 6 20 7 515 123 . 75 105 40 16 . 1 . . 5 . . . . . . 31 Thermal 1619 | . 24 . . . 44 142 . 9 1 19 49 39 52 10 92 . 53 258 26 57 297 28 386 33 . Explosive 45 | . . . . 1 . 6 4 . . 4 2 5 . . 4 . 1 2 . . 7 . 2 7 . Electromagnetic . | . . . . . . . . . . . . . . . . . . . . . . . . . . Robot Hit Streak 27 | . 10 . . 1 15 14 13 14 . 16 18 13 8 9 11 . 5 23 10 12 27 5 13 12 9 Robot Miss Streak 8 | . 2 . . 3 6 4 4 4 . 5 4 5 3 . 4 . 1 4 2 2 5 2 8 1 . Penetration Max 1 | . . . . . . . . . . 1 1 1 1 . . . . 1 . . . . . . . Secondary Targets 30 | . 1 . . . . 1 12 8 . 6 . 1 . . . . . . . 1 . . . . . Max Gunslinging Chain 2 | . 1 . . . . 1 2 2 . 1 . 1 . . . . . . . 1 . . . . . Shots Hit Robots 1477 | . 43 . . 1 39 98 309 83 . 54 78 46 41 9 45 . 8 174 20 33 161 10 194 30 1 Core Hits 843 | . 17 . . 3 12 50 127 28 . 43 38 47 23 3 46 . 10 95 7 21 102 7 111 52 1 Critical Kills 23 | . . . . . . 1 4 3 . 1 1 2 2 . 1 . . 4 . . 1 1 1 1 . Critical Parts Destroyed 23 | . . . . . 1 . 11 3 . 3 3 1 1 . . . . . . . . . . . . Critical Strikes 93 | . 1 . . . 1 6 15 7 . 8 8 5 11 . 4 . 1 9 2 6 3 1 3 1 1 Burn 45 | . 1 . . . . 5 . 1 . 4 4 1 8 . 3 . 1 5 2 6 2 . 2 . . Meltdown 10 | . . . . . . 1 . . . . . . 1 . 1 . . 3 . . 1 1 1 1 . Destroy 37 | . . . . . 1 . 15 6 . 4 4 4 2 . . . . 1 . . . . . . . Blast 1 | . . . . . . . . . . . . . . . . . . . . . . . . . 1 Melee Attacks 31 | . . . . . . 31 . . . . . . . . . . . . . . . . . . . Impact 31 | . . . . . . 31 . . . . . . . . . . . . . . . . . . . Slashing . | . . . . . . . . . . . . . . . . . . . . . . . . . . Piercing . | . . . . . . . . . . . . . . . . . . . . . . . . . . Sneak Attacks . | . . . . . . . . . . . . . . . . . . . . . . . . . . Combat Hostiles . | . . . . . . . . . . . . . . . . . . . . . . . . . . Follow-up Attacks . | . . . . . . . . . . . . . . . . . . . . . . . . . . Damage Inflicted 64482 | . 535 11 . 194 783 2573 6896 1637 . 1998 1879 2326 1388 372 2893 . 377 6602 507 1079 7394 269 8405 16324 40 Guns 19523 | . 534 . . 47 162 1140 6222 1537 . 1163 1787 1285 922 45 446 . 38 984 507 1070 718 . 644 272 . Cannons 22392 | . . . . . 616 748 . 90 . 28 . 84 466 327 1208 . 189 5429 . . 5118 269 7290 490 40 Explosions 22172 | . . . . 147 . 655 579 . . 807 35 954 . . 1149 . 150 178 . . 1558 . 406 15554 . Melee . | . . . . . . . . . . . . . . . . . . . . . . . . . . Ramming 395 | . 1 11 . . 5 30 95 10 . . 57 3 . . 90 . . 11 . 9 . . 65 8 . Kinetic 10896 | . 268 . . 47 162 71 6222 1416 . 763 935 683 213 . . . . 76 . . . . . . 40 Thermal 44834 | . 266 . . . 616 1817 . 211 . 428 852 686 1175 372 1654 . 227 6337 507 1070 5836 269 7934 14577 . Explosive 7733 | . . . . 147 . 655 579 . . 807 35 954 . . 525 . 150 178 . . 1558 . 406 1739 . Electromagnetic 624 | . . . . . . . . . . . . . . . 624 . . . . . . . . . . Impact . | . . . . . . . . . . . . . . . . . . . . . . . . . . Slashing . | . . . . . . . . . . . . . . . . . . . . . . . . . . Piercing . | . . . . . . . . . . . . . . . . . . . . . . . . . . Highest Corruption 37 | . . . . . . . 6 6 6 3 . 1 1 1 37 . . 3 21 25 29 33 18 18 3 Average Corruption 7 | . . . . . . . 3 6 6 3 . 1 1 1 9 . . 1 14 23 26 30 5 6 3 Corruption Purged 1 | . . . . . . . 1 . . . . . . . . . . . . . . . . . . Corruption Blocked . | . . . . . . . . . . . . . . . . . . . . . . . . . . Effects 320 | . . . . . . . 38 24 4 22 . 8 5 . 25 . . 15 7 18 93 7 31 19 4 Message Errors 67 | . . . . . . . 11 6 . 8 . 1 . . 6 . . 2 3 . 16 1 7 4 2 Matter Fused 77 | . . . . . . . 1 6 2 5 . 3 4 . 7 . . 4 2 7 23 3 5 3 2 Heat Flow Errors 33 | . . . . . . . 8 4 . 1 . . . . 2 . . 1 . 1 10 . 5 1 . Energy Discharges 29 | . . . . . . . 5 3 1 3 . 1 . . 1 . . 1 . 3 3 1 2 5 . Parts Rejected 5 | . . . . . . . . . . . . . . . . . . 1 . . 1 . 2 1 . Data Loss (minor) 43 | . . . . . . . 7 4 1 4 . . 1 . 3 . . 1 . 5 11 . 4 2 . Data Loss (major) 13 | . . . . . . . 1 1 . . . 1 . . 2 . . 2 . . 5 . . 1 . Misfires 13 | . . . . . . . 1 . . 1 . . . . 2 . . 1 . . 5 . 2 1 . Alerts 9 | . . . . . . . 1 . . . . . . . 1 . . . 1 1 3 . 1 1 . Misdirections 1 | . . . . . . . . . . . . . . . . . . . . . 1 . . . . Weapon Failures 30 | . . . . . . . 3 . . . . 2 . . 1 . . 2 1 1 15 2 3 . . Overload Shots 15 | . . . . . . . . . . . 3 1 1 . . . 1 . . . 3 2 . 4 . Overflow Damage 1820 | . . . . 9 . 19 8 . . . . . . . 62 . . 60 . . 139 . 226 1297 . Projectiles 382 | . . . . . . 19 . . . . . . . . 39 . . 60 . . 92 . 172 . . Explosions 1388 | . . . . 9 . . 8 . . . . . . . 10 . . . . . 47 . 17 1297 . Melee 50 | . . . . . . . . . . . . . . . 13 . . . . . . . 37 . . Knockbacks 5 | . . 1 . . 1 . . . . . 1 . . . 1 . . . . 1 . . . . . Impact 5 | . . 1 . . 1 . . . . . 1 . . . 1 . . . . 1 . . . . . Kinetic . | . . . . . . . . . . . . . . . . . . . . . . . . . . Secondary . | . . . . . . . . . . . . . . . . . . . . . . . . . . Self-Inflicted Damage 1583 | . . . . 48 . 43 . . . . . 32 . . 91 . . . . . 153 . 41 1175 . Shots 17 | . . . . 1 . 2 . . . . . 1 . . 1 . . . . . 5 . 1 6 . Rammed 32 | . 1 . . . . 1 10 1 . . 6 1 . . 4 . . 2 . 1 . . 3 2 . Targets Rammed 40 | . 1 1 . . 1 4 12 1 . . 7 1 . . 4 . . 2 . 1 . . 3 2 . Kicked 2 | . . 1 . . 1 . . . . . . . . . . . . . . . . . . . . Crushed 6 | . . . . . . 3 2 . . . 1 . . . . . . . . . . . . . . Highest Temperature 445 | . 385 . . . 68 184 400 316 33 239 163 190 228 51 256 . . 221 27 300 300 42 445 165 . Average Temperature 86 | . 185 . . . 20 42 84 72 33 77 61 59 109 33 35 . . 82 14 103 77 9 127 59 . Received Heat Transfer 3616 | . 360 . . . 315 558 264 198 . 114 126 105 18 . 111 . 9 505 . 99 354 . 195 273 12 Effects 14 | . 3 . . . . . 2 . . 1 . . . . . . . . . . 1 . 7 . . Shutdowns 2 | . 1 . . . . . 1 . . . . . . . . . . . . . . . . . . Energy Bleed 3 | . . . . . . . 1 . . . . . . . . . . . . . 1 . 1 . . Interference 5 | . 1 . . . . . . . . 1 . . . . . . . . . . . . 3 . . Matter Decay 1 | . . . . . . . . . . . . . . . . . . . . . . . 1 . . Short Circuit 2 | . 1 . . . . . . . . . . . . . . . . . . . . . 1 . . Damage (minor) 1 | . . . . . . . . . . . . . . . . . . . . . . . 1 . . Siege Activations 13 | . . . . . . . . . . . . . . . 1 . 1 2 . . 4 1 3 1 . Total Turns 303 | . . . . . . . . . . . . . . . 11 . 6 67 . . 88 15 112 4 . Longest Duration 59 | . . . . . . . . . . . . . . . 11 . 6 37 . . 33 15 59 4 . Robots Corrupted 1 | . . . . . . . . . . . . . . . 1 . . . . . . . . . . Combat Hostiles . | . . . . . . . . . . . . . . . . . . . . . . . . . . Parts Fried 6 | . . . . . . . . . . . . . 1 . 5 . . . . . . . . . . Impact Corruptions 4 | . . . . . . 1 . . . . . . . . 1 . . . . . . . 2 . . Robots Melted 17 | . . . . . . 1 . . . . . . 1 . 2 . . 6 . . 4 1 1 1 . Combat Hostiles 16 | . . . . . . . . . . . . . 1 . 2 . . 6 . . 4 1 1 1 . Parts Melted 130 | . . . . . 2 5 2 . . . 3 1 4 . 9 . 1 47 1 10 21 5 19 . . Heat Transferred 40007 | . 851 . . . 1110 3700 . 333 . 851 1406 1091 1913 437 2364 . 448 9118 1040 1891 5628 241 6771 814 . Parts Sabotaged 4 | . . . . . . . . . . . . . . . . . . . . . 3 . . 1 . Parts Stolen . | . . . . . . . . . . . . . . . . . . . . . . . . . . Parts Stripped . | . . . . . . . . . . . . . . . . . . . . . . . . . . Power Chain Reactions . | . . . . . . . . . . . . . . . . . . . . . . . . . . Missiles Intercepted . | . . . . . . . . . . . . . . . . . . . . . . . . . . Alert | -11 -10 -10 -10 -9 -8 -8 -7 -7 -7 -6 -6 -6 -6 -6 -6 -5 -5 -4 -4 -4 -4 -4 -3 -3 -3 ------- Run | Scr Mat Min Exi Min Mat Sto Fac Low Zio Pro Fac Ext Cet Arc Hub Fac DSF Fac Was Fac Arm Lab Res Qua Sec Peak Influence 1946 | . 163 7 . 83 296 478 791 . . . 318 256 591 387 974 476 535 927 338 577 1946 . 1102 1787 1086 Initial 844 | . . 7 . . 31 40 . . . . 179 100 143 236 135 476 336 280 324 236 184 . . 595 844 Average 417 | . 75 7 . 81 177 161 307 . . . 197 125 390 327 519 476 448 522 334 398 940 . 429 1243 902 Maximum Alert Level 5 | . . . . . 1 2 3 . . . 1 1 2 1 3 2 2 3 1 2 5 . 4 5 3 Low Security (%) 35 | 100 100 100 . 100 51 72 50 . . . 43 79 9 . 4 . . . . . . . 31 . . Level 1 24 | . . . . . 48 17 16 . . . 56 20 39 100 22 . 40 21 100 56 26 . 16 . . Level 2 20 | . . . . . . 10 9 . . . . . 51 . 65 100 60 56 . 43 12 . 28 30 . Level 3 12 | . . . . . . . 24 . . . . . . . 6 . . 22 . . 20 . 22 6 100 Level 4 3 | . . . . . . . . . . . . . . . . . . . . . 22 . . 20 . Level 5 3 | . . . . . . . . . . . . . . . . . . . . . 16 . . 41 . High Security . | . . . . . . . . . . . . . . . . . . . . . . . . . . Max Security . | . . . . . . . . . . . . . . . . . . . . . . . . . . Squads Dispatched 70 | . 2 . . . . 1 11 . . 1 4 3 . . 6 . 1 8 . 1 9 . 12 8 3 Investigation 6 | . . . . . . . . . . . . 1 . . . . . . . . . . . 2 3 Extermination 19 | . . . . . . . 4 . . . 2 . . . . . . 2 . 1 3 . 5 2 . Reinforcement 22 | . 2 . . . . . 4 . . . 2 2 . . 4 . 1 2 . . 2 . . 3 . Assault 10 | . . . . . . . 1 . . 1 . . . . 1 . . 1 . . 4 . 1 1 . Garrison 7 | . . . . . . 1 2 . . . . . . . 1 . . 3 . . . . . . . Intercept 6 | . . . . . . . . . . . . . . . . . . . . . . . 6 . . Searches Triggered . | . . . . . . . . . . . . . . . . . . . . . . . . . . Construction Impeded 4 | . . . . . . . 1 . . . . . . . 1 . . 1 . . . . . 1 . Haulers Reinforced 4 | . . . . . . . 1 . . . 1 . . . 1 . . . . . . . . 1 . Active Scanning Responses 2 | . . . . . . . . . . . . . . . . . . . . . . . . . 2 Cargo Convoy Interrupts 1 | . . . . . . . 1 . . . . . . . . . . . . . . . . . . Stealth | -11 -10 -10 -10 -9 -8 -8 -7 -7 -7 -6 -6 -6 -6 -6 -6 -5 -5 -4 -4 -4 -4 -4 -3 -3 -3 --------- Run | Scr Mat Min Exi Min Mat Sto Fac Low Zio Pro Fac Ext Cet Arc Hub Fac DSF Fac Was Fac Arm Lab Res Qua Sec Distress Signals 24 | . . . . . 4 6 1 . . . . 3 2 . 2 . . . . 2 3 . . 1 . Communications Jammed 122 | . . . . . . . . . . . . . . . . . . 1 . . 71 . 50 . . Distress Signals 118 | . . . . . . . . . . . . . . . . . . 1 . . 67 . 50 . . Times Spotted 520 | . 11 . 8 4 14 36 56 22 . 34 19 19 17 2 28 . 11 44 5 17 73 1 63 31 5 Peak Tracking Total 11 | . 4 . 9 4 5 6 11 8 . 9 3 4 5 1 6 . 5 5 3 5 6 1 7 7 1 Tactical Retreats 18 | . . . . . . 1 2 4 . . 1 . . . 1 . 1 . . 2 1 . 1 4 . Traps | -11 -10 -10 -10 -9 -8 -8 -7 -7 -7 -6 -6 -6 -6 -6 -6 -5 -5 -4 -4 -4 -4 -4 -3 -3 -3 ------- Run | Scr Mat Min Exi Min Mat Sto Fac Low Zio Pro Fac Ext Cet Arc Hub Fac DSF Fac Was Fac Arm Lab Res Qua Sec Traps Triggered 26 | . . . . . . 1 3 . . . . 1 . . 6 . 3 3 . 3 2 . 3 1 . Indirectly 1 | . . . . . . . . . . . . . . . 1 . . . . . . . . . . Trap Hack Attempts . | . . . . . . . . . . . . . . . . . . . . . . . . . . Triggered . | . . . . . . . . . . . . . . . . . . . . . . . . . . Disarmed . | . . . . . . . . . . . . . . . . . . . . . . . . . . Reprogrammed . | . . . . . . . . . . . . . . . . . . . . . . . . . . Reused . | . . . . . . . . . . . . . . . . . . . . . . . . . . Traps Extracted . | . . . . . . . . . . . . . . . . . . . . . . . . . . Installed . | . . . . . . . . . . . . . . . . . . . . . . . . . . Triggered 2 | . . . . . . . . . . 2 . . . . . . . . . . . . . . . Machines | -11 -10 -10 -10 -9 -8 -8 -7 -7 -7 -6 -6 -6 -6 -6 -6 -5 -5 -4 -4 -4 -4 -4 -3 -3 -3 ---------- Run | Scr Mat Min Exi Min Mat Sto Fac Low Zio Pro Fac Ext Cet Arc Hub Fac DSF Fac Was Fac Arm Lab Res Qua Sec Machines Disabled 72 | . . . 2 . 5 4 2 . . . 8 5 3 1 12 . . 1 . . 8 3 1 16 1 Max in Single Turn 12 | . . . 1 . 2 1 1 . . . 1 1 1 . 4 . . 1 . . 1 1 1 12 1 Garrison Access 5 | . . . . . . 1 1 . . . . . . . . 1 . . . 1 . . 1 . . Network Hub 1 | . . . . . . . . . . . . . . . 1 . . . . . . . . . . Energy Cycler 1 | . . . . . . . . . . . . 1 . . . . . . . . . . . . . Machines Sabotaged . | . . . . . . . . . . . . . . . . . . . . . . . . . . Garrisons Compromised . | . . . . . . . . . . . . . . . . . . . . . . . . . . Overloaded Fab Kills . | . . . . . . . . . . . . . . . . . . . . . . . . . . Hacking | -11 -10 -10 -10 -9 -8 -8 -7 -7 -7 -6 -6 -6 -6 -6 -6 -5 -5 -4 -4 -4 -4 -4 -3 -3 -3 --------- Run | Scr Mat Min Exi Min Mat Sto Fac Low Zio Pro Fac Ext Cet Arc Hub Fac DSF Fac Was Fac Arm Lab Res Qua Sec Machines Accessed 36 | . 4 . 2 . 2 11 4 . . . 1 2 . . . 2 . 2 . 1 2 2 1 . . Terminals 21 | . 4 . . . 2 9 1 . . . . 2 . . . 1 . . . . 2 . . . . Fabricators 2 | . . . . . . . 1 . . . 1 . . . . . . . . . . . . . . Repair Stations 3 | . . . . . . 1 1 . . . . . . . . . . 1 . . . . . . . Recycling Units . | . . . . . . . . . . . . . . . . . . . . . . . . . . Scanalyzers . | . . . . . . . . . . . . . . . . . . . . . . . . . . Garrison Access 6 | . . . . . . 1 1 . . . . . . . . 1 . 1 . 1 . . 1 . . Total Hacks 106 | . 18 . 2 . 5 54 6 . . . 2 5 . . . 5 . 2 . 2 2 2 1 . . Successful 52 | . 9 . 2 . 1 25 4 . . . 2 1 . . . 2 . . . 1 2 2 1 . . Failed 53 | . 8 . . . 4 29 2 . . . . 4 . . . 3 . 2 . 1 . . . . . Catastrophic 9 | . 4 . . . . 2 1 . . . . 1 . . . . . 1 . . . . . . . Database Lockouts 1 | . 1 . . . . . . . . . . . . . . . . . . . . . . . . Manual 121 | . 10 . 1 . 3 35 . . . . 11 3 1 . 17 3 . 10 . . 14 . 11 2 . Terminals 78 | . 18 . . . 5 46 1 . . . . 5 . . . 1 . . . . 2 . . . . Fabricators 4 | . . . . . . . 2 . . . 2 . . . . . . . . . . . . . . Repair Stations 7 | . . . . . . 4 2 . . . . . . . . . . 1 . . . . . . . Recycling Units . | . . . . . . . . . . . . . . . . . . . . . . . . . . Scanalyzers . | . . . . . . . . . . . . . . . . . . . . . . . . . . Garrison Access 13 | . . . . . . 4 1 . . . . . . . . 4 . 1 . 2 . . 1 . . Terminal Hacks 36 | . 8 . 2 . 1 19 . . . . . 1 . . . 1 . . . . 2 2 . . . Record 5 | . 3 . 1 . . . . . . . . . . . . . . . . . . 1 . . . Part Schematic 1 | . . . . . . 1 . . . . . . . . . . . . . . . . . . . Robot Analysis 4 | . 2 . . . . 2 . . . . . . . . . . . . . . . . . . . Prototype ID Bank 5 | . . . . . . 5 . . . . . . . . . . . . . . . . . . . Open Door 4 | . . . . . . 1 . . . . . 1 . . . . . . . . 2 . . . . Open DSF 1 | . . . . . . . . . . . . . . . . 1 . . . . . . . . . Branch Access Points 2 | . 1 . . . 1 . . . . . . . . . . . . . . . . . . . . Emergency Access Points 1 | . 1 . . . . . . . . . . . . . . . . . . . . . . . . Terminal Index 1 | . . . . . . 1 . . . . . . . . . . . . . . . . . . . Alert Level 3 | . . . . . . 3 . . . . . . . . . . . . . . . . . . . Unreport Threat 3 | . . . . . . 3 . . . . . . . . . . . . . . . . . . . Hauler Manifests 2 | . . . . . . 2 . . . . . . . . . . . . . . . . . . . Zone Layout 2 | . 1 . . . . 1 . . . . . . . . . . . . . . . . . . . EX-Prototype ID Bank 1 | . . . 1 . . . . . . . . . . . . . . . . . . . . . . Gate Test 138-A 1 | . . . . . . . . . . . . . . . . . . . . . . 1 . . . Fabricator Hacks 3 | . . . . . . . 1 . . . 2 . . . . . . . . . . . . . . Load Schematic 1 | . . . . . . . . . . . 1 . . . . . . . . . . . . . . Build 2 | . . . . . . . 1 . . . 1 . . . . . . . . . . . . . . Repair Station Hacks 5 | . . . . . . 3 2 . . . . . . . . . . . . . . . . . . Scan Component 3 | . . . . . . 2 1 . . . . . . . . . . . . . . . . . . Repair 2 | . . . . . . 1 1 . . . . . . . . . . . . . . . . . . Recycling Unit Hacks . | . . . . . . . . . . . . . . . . . . . . . . . . . . Scanalyzer . | . . . . . . . . . . . . . . . . . . . . . . . . . . Garrison Access Hacks 5 | . . . . . . 1 1 . . . . . . . . 1 . . . 1 . . 1 . . Seal Access 5 | . . . . . . 1 1 . . . . . . . . 1 . . . 1 . . 1 . . Unauthorized Hacks 3 | . 1 . . . . 2 . . . . . . . . . . . . . . . . . . . Terminals 3 | . 1 . . . . 2 . . . . . . . . . . . . . . . . . . . Botnet 3 | . 1 . . . . 2 . . . . . . . . . . . . . . . . . . . Fabricators . | . . . . . . . . . . . . . . . . . . . . . . . . . . Repair Stations . | . . . . . . . . . . . . . . . . . . . . . . . . . . Recycling Units . | . . . . . . . . . . . . . . . . . . . . . . . . . . Scanalyzers . | . . . . . . . . . . . . . . . . . . . . . . . . . . Garrison Access . | . . . . . . . . . . . . . . . . . . . . . . . . . . Data Cores Recovered 1 | . . . . . . 1 . . . . . . . . . . . . . . . . . . . Used . | . . . . . . . . . . . . . . . . . . . . . . . . . . Hacking Detections 24 | . 4 . . . 2 9 3 . . . . 2 . . . 1 . 2 . . 1 . . . . Full Trace Events 2 | . . . . . . 1 . . . . . 1 . . . . . . . . . . . . . Feedback Events 1 | . . . . . . . . . . . . 1 . . . . . . . . . . . . . Corruption 1 | . . . . . . . . . . . . 1 . . . . . . . . . . . . . Feedback Blocked . | . . . . . . . . . . . . . . . . . . . . . . . . . . Robot Schematics Acquired 3 | . . . . . . . . . 3 . . . . . . . . . . . . . . . . Robots Built 1 | . . . . . . . 1 . . . . . . . . . . . . . . . . . . Authchips . | . . . . . . . . . . . . . . . . . . . . . . . . . . Time 40 | . . . . . . . 40 . . . . . . . . . . . . . . . . . . Total Robot Build Rating 1 | . . . . . . . 1 . . . . . . . . . . . . . . . . . . Part Schematics Acquired 50 | . . . . . . 1 . . 14 . 15 . . . 12 . . . . . . . 8 . . Parts Built 1 | . . . . . . . . . . . 1 . . . . . . . . . . . . . . Authchips 1 | . . . . . . . . . . . 1 . . . . . . . . . . . . . . Time 42 | . . . . . . . . . . . 42 . . . . . . . . . . . . . . Total Part Build Rating 4 | . . . . . . . . . . . 4 . . . . . . . . . . . . . . Parts Repaired 2 | . . . . . . 1 1 . . . . . . . . . . . . . . . . . . Time 86 | . . . . . . 26 60 . . . . . . . . . . . . . . . . . . Parts Recycled . | . . . . . . . . . . . . . . . . . . . . . . . . . . Recycled Matter . | . . . . . . . . . . . . . . . . . . . . . . . . . . Retrieved Matter . | . . . . . . . . . . . . . . . . . . . . . . . . . . Retrieved Components . | . . . . . . . . . . . . . . . . . . . . . . . . . . Parts Scanalyzed . | . . . . . . . . . . . . . . . . . . . . . . . . . . Part Schematics Acquired . | . . . . . . . . . . . . . . . . . . . . . . . . . . Parts Damaged . | . . . . . . . . . . . . . . . . . . . . . . . . . . Bothacking | -11 -10 -10 -10 -9 -8 -8 -7 -7 -7 -6 -6 -6 -6 -6 -6 -5 -5 -4 -4 -4 -4 -4 -3 -3 -3 ------------ Run | Scr Mat Min Exi Min Mat Sto Fac Low Zio Pro Fac Ext Cet Arc Hub Fac DSF Fac Was Fac Arm Lab Res Qua Sec Used RIF Installer . | . . . . . . . . . . . . . . . . . . . . . . . . . . Robots Hacked . | . . . . . . . . . . . . . . . . . . . . . . . . . . Non-combat . | . . . . . . . . . . . . . . . . . . . . . . . . . . Combat . | . . . . . . . . . . . . . . . . . . . . . . . . . . Robot Hacks Applied . | . . . . . . . . . . . . . . . . . . . . . . . . . . Relay Couplers Released 4 | . . . . . . . . . . . . . . . . . . . . . . . 4 . . Programmers 4 | . . . . . . . . . . . . . . . . . . . . . . . 4 . . Fabnet Peak Effective % . | . . . . . . . . . . . . . . . . . . . . . . . . . . Robots Rewired 4 | . . . . . . . . 2 . 2 . . . . . . . . . . . . . . . Allies Hacked 1 | . . . . . . . 1 . . . . . . . . . . . . . . . . . . Hacks Repelled 1 | . . . . . . . 1 . . . . . . . . . . . . . . . . . . Allies | -11 -10 -10 -10 -9 -8 -8 -7 -7 -7 -6 -6 -6 -6 -6 -6 -5 -5 -4 -4 -4 -4 -4 -3 -3 -3 -------- Run | Scr Mat Min Exi Min Mat Sto Fac Low Zio Pro Fac Ext Cet Arc Hub Fac DSF Fac Was Fac Arm Lab Res Qua Sec Total Allies 36 | . . . . 2 . . 1 2 4 2 . 3 5 . 3 . . 2 . . 11 . 1 . . Largest Group 6 | . . . . 2 2 . 1 2 6 6 2 3 5 3 4 . . 2 2 2 4 . . . . Highest-Rated Group 537 | . . . . 41 41 . 10 48 203 200 59 215 537 336 306 . . 206 206 206 412 . . . . Highest-Rated Ally 159 | . . . . 31 31 . 10 32 41 41 30 159 153 144 96 . . 103 103 103 103 . . . . Zionite Dispatches 8 | . . . . . . . . . . . . . . . 1 . . 1 . . 5 . 1 . . Heavy 3 | . . . . . . . . . . . . . . . . . . 1 . . 2 . . . . Light 2 | . . . . . . . . . . . . . . . 1 . . . . . 1 . . . . Fire 1 | . . . . . . . . . . . . . . . . . . . . . 1 . . . . Thermal Resupply 1 | . . . . . . . . . . . . . . . . . . . . . . . 1 . . Infowar Resupply 1 | . . . . . . . . . . . . . . . . . . . . . 1 . . . . Total Orders 2 | . . . . . . . . . . . . . . . . . . . . . 1 . 1 . . DROP 2 | . . . . . . . . . . . . . . . . . . . . . 1 . 1 . . Ally Attacks 450 | . . . 19 . 11 . . 8 . 39 23 73 59 16 40 . . . 19 8 135 . . . . Total Damage 15364 | . . . 887 . 128 . . 216 . 834 459 1619 1573 616 1090 . . . 1473 587 5882 . . . . Kills 93 | . . . 7 . 1 . . 1 . 10 4 9 15 3 9 . . . 4 3 27 . . . . Allies Corrupted 4 | . . . . . . . . . . . . . . . 1 . . . . 2 1 . . . . Allies Melted 2 | . . . . . . . . . . . . 1 . . 1 . . . . . . . . . . Turrets Deployed 3 | . . . 3 . . . . . . . . . . . . . . . . . . . . . . Intel | -11 -10 -10 -10 -9 -8 -8 -7 -7 -7 -6 -6 -6 -6 -6 -6 -5 -5 -4 -4 -4 -4 -4 -3 -3 -3 ------- Run | Scr Mat Min Exi Min Mat Sto Fac Low Zio Pro Fac Ext Cet Arc Hub Fac DSF Fac Was Fac Arm Lab Res Qua Sec Robot Analysis Total 4 | . 2 . . . . 2 . . . . . . . . . . . . . . . . . . . Derelict Logs Recovered 2 | . . . . . . . . . 1 1 . . . . . . . . . . . . . . . Drone Launches . | . . . . . . . . . . . . . . . . . . . . . . . . . . Drone Recoveries . | . . . . . . . . . . . . . . . . . . . . . . . . . . Decoded 0b10 Intel 29 | . . . . . . . . . . . . . . . . . . . . . . . 14 12 3 Traps 21 | . . . . . . . . . . . . . . . . . . . . . . . 13 7 1 Emergency Access 8 | . . . . . . . . . . . . . . . . . . . . . . . 1 5 2 Zionite Intel Received 9 | . . . . . . . . . . . 2 . . . 3 . . 2 . . 1 . 1 . . Main Access 1 | . . . . . . . . . . . 1 . . . . . . . . . . . . . . Component Schematics 2 | . . . . . . . . . . . 1 . . . 1 . . . . . . . . . . Prototype Schematics 1 | . . . . . . . . . . . . . . . . . . . . . . . 1 . . Active Terminals 2 | . . . . . . . . . . . . . . . 1 . . . . . 1 . . . . Active Garrisons 2 | . . . . . . . . . . . . . . . 1 . . 1 . . . . . . . Depthwide Sectors/0 1 | . . . . . . . . . . . . . . . . . . 1 . . . . . . . Exploration | -11 -10 -10 -10 -9 -8 -8 -7 -7 -7 -6 -6 -6 -6 -6 -6 -5 -5 -4 -4 -4 -4 -4 -3 -3 -3 ------------- Run | Scr Mat Min Exi Min Mat Sto Fac Low Zio Pro Fac Ext Cet Arc Hub Fac DSF Fac Was Fac Arm Lab Res Qua Sec Turns Passed 26064 | 89 505 143 930 290 400 1717 2867 913 3457 1372 1758 1386 654 112 775 270 285 1395 189 404 1550 1196 2051 955 401 Spaces Moved 9374 | 56 187 75 378 107 120 628 1001 318 1400 484 559 394 187 39 264 165 131 479 92 182 468 363 651 421 225 Core 18 | 14 . . . . . . . . . . . . . . . . . . . . . . . . 4 Treads 7976 | 42 94 . . . . 549 1001 318 1400 484 559 394 187 39 264 165 131 479 92 182 468 363 651 114 . Legs 1378 | . 93 75 378 107 120 79 . . . . . . . . . . . . . . . . . 307 219 Wheels 2 | . . . . . . . . . . . . . . . . . . . . . . . . . 2 Hover . | . . . . . . . . . . . . . . . . . . . . . . . . . . Flight . | . . . . . . . . . . . . . . . . . . . . . . . . . . Fastest Speed 50 | 50 160 190 190 260 190 160 240 243 240 240 250 246 245 245 245 160 160 160 160 160 160 160 232 120 50 Average Speed 229 | 132 210 190 232 260 212 198 241 245 244 247 277 325 291 245 245 160 160 217 160 160 237 214 238 150 118 Slowest Speed 330 | 160 330 190 260 260 260 240 246 246 250 250 330 330 326 245 245 160 160 240 160 160 245 240 240 240 125 Overloaded Moves . | . . . . . . . . . . . . . . . . . . . . . . . . . . Propulsion Burnouts . | . . . . . . . . . . . . . . . . . . . . . . . . . . Robots Hopped 1 | . . . 1 . . . . . . . . . . . . . . . . . . . . . . Cave-ins Triggered . | . . . . . . . . . . . . . . . . . . . . . . . . . . Teleports 2 | . . . . . . . . . . . . . . . . . . . . . . . 1 1 . Exploration Rate (%) 46 | 5 46 23 69 25 12 88 18 52 89 70 11 58 64 61 32 7 95 20 88 10 50 100 34 66 16 Regions Visited 25 Branch Regions 15 Pre-discovered Areas 10 | . . . 1 . . . . . 2 1 . . . . . . . 6 . . . . . . . Known Exits Taken 6 | . 1 . . . 1 . 1 . . . . . . . 1 1 . . . . . . . 1 . Unknown Exits Taken 16 | 1 . 1 1 1 . 1 . 1 1 1 1 1 1 1 . . . . . 1 1 1 1 . . Scrap Searched 8 | . . . . . . . . 2 3 3 . . . . . . . . . . . . . . . Spaces Dug 124 | . . . . 15 . . . . . . 5 . . . 1 . 23 1 . . 43 1 14 1 20 Terrain Destroyed 1442 | . . . . 15 . 50 14 3 . 19 21 43 4 1 182 . 31 46 . 4 190 9 148 624 38 Melee . | . . . . . . . . . . . . . . . . . . . . . . . . . . Projectile 408 | . . . . . . . . 3 . 1 12 2 4 1 28 . 26 42 . 4 105 9 129 4 38 AOE 1034 | . . . . 15 . 50 14 . . 18 9 41 . . 154 . 5 4 . . 85 . 19 620 . Terrain Rammed . | . . . . . . . . . . . . . . . . . . . . . . . . . . Walls Destroyed . | . . . . . . . . . . . . . . . . . . . . . . . . . . Machines Disabled . | . . . . . . . . . . . . . . . . . . . . . . . . . . Actions | -11 -10 -10 -10 -9 -8 -8 -7 -7 -7 -6 -6 -6 -6 -6 -6 -5 -5 -4 -4 -4 -4 -4 -3 -3 -3 --------- Run | Scr Mat Min Exi Min Mat Sto Fac Low Zio Pro Fac Ext Cet Arc Hub Fac DSF Fac Was Fac Arm Lab Res Qua Sec Total 12366 | 70 243 75 428 113 206 907 1320 415 1442 623 684 445 268 49 324 172 169 645 119 261 702 760 895 705 326 Wait 1213 | . 2 . 38 . 22 61 73 30 2 14 33 4 1 7 8 . 8 62 6 59 42 362 82 237 60 Move 9348 | 55 186 74 375 106 119 627 1000 317 1399 483 558 393 186 38 263 164 130 479 91 181 467 362 650 420 225 Hop 1 | . . . 1 . . . . . . . . . . . . . . . . . . . . . . Pick Up 196 | 8 16 . 5 . 13 31 25 2 10 4 12 5 18 . 3 1 3 7 2 . 15 2 9 3 2 Fast Attach 116 | . 3 . . . 6 9 6 1 5 3 6 2 4 . 6 . 4 6 3 2 21 10 9 5 5 Attach 114 | 6 3 . . 1 6 9 16 7 5 . 3 2 5 . 2 4 . 5 2 1 5 3 18 10 1 Detach 18 | . . . . . . 1 3 . 5 . . . 1 . 1 . . . . . 1 1 2 2 1 Swap 121 | 1 2 . 1 2 . 15 22 5 6 7 6 3 8 1 2 1 5 8 . . 16 2 8 . . Drop 223 | . 2 . 6 . 7 36 29 2 9 11 16 5 27 . 6 2 4 1 8 2 31 7 8 3 1 Fire 846 | . 28 . 2 4 32 81 134 33 1 29 43 28 18 3 29 . 15 75 7 15 102 11 102 23 31 Melee 31 | . . . . . . 31 . . . . . . . . . . . . . . . . . . . Ram . | . . . . . . . . . . . . . . . . . . . . . . . . . . Kick 2 | . . 1 . . 1 . . . . . . . . . . . . . . . . . . . . Crush 38 | . 1 . . . . 4 12 1 . . 7 1 . . 4 . . 2 . 1 . . 3 2 . Escape Stasis 10 | . . . . . . 2 . . . . . 2 . . . . . . . . 2 . 4 . . Rewire 89 | . . . . . . . . 17 . 72 . . . . . . . . . . . . . . . Trap . | . . . . . . . . . . . . . . . . . . . . . . . . . . Miscellaneous . | . . . . . . . . . . . . . . . . . . . . . . . . . . Route ------- -11/Scrapyard -10/Materials (discovered 2 exits: [Mat] / *Min) -10/Mines -10/Exiles -9/Mines -8/Materials (discovered 2 exits: *Sto x2) -8/Storage -7/Factory (discovered 2 exits: *Low x2) -7/Lower Caves -7/Zion -6/Proximity Caves -6/Factory (discovered 6 exits: Fac x4 / [*Low] / *Ext) -6/Extension (discovered 3 exits: *Fac x2 / *Cet) -6/Cetus (discovered 2 exits: *Fac / [*Arc]) -6/Archives -6/Hub_04(d) (discovered 2 exits: *Fac x2) -5/Factory -5/DSF -4/Factory -4/Waste -4/Factory -4/Armory (discovered 2 exits: *Res / *Lab) -4/Lab -3/Research -3/Quarantine -3/Section 7 History --------- Turn | Location | Event 7 | -11/Scrapyard | Discovered new exit (range 16) 90 | -11/Scrapyard | Entered Materials 301 | -10/Materials | Build established: Mutant 313 | -10/Materials | Central database locked down 553 | -10/Materials | Discovered new exit (range 19) 553 | -10/Materials | Identified exit to Mines 595 | -10/Materials | Entered Mines 612 | -10/Mines | Met a Derelict bent on vengeance 728 | -10/Mines | Deemed a non-threat by the Exiles lab entrance 728 | -10/Mines | Discovered new exit (range 5) 738 | -10/Mines | Entered Exiles 786 | -10/Exiles | Met 8R-AWN 818 | -10/Exiles | Met EX-HEX 920 | -10/Exiles | Met EX-DEC 952 | -10/Exiles | Learned location of Zion (-7) 1146 | -10/Exiles | Met EX-BIN 1183 | -10/Exiles | Aligned with FarCom system 1185 | -10/Exiles | Given EX-Vault access code 1245 | -10/Exiles | Opened EX-Vault 1318 | -10/Exiles | Found Deploy-a-Sentry 1322 | -10/Exiles | Found Deploy-a-Sentry 1325 | -10/Exiles | Found Deploy-a-Sentry 1383 | -10/Exiles | Warned to stay clear of 0b10 Research branches 1528 | -10/Exiles | DAS Turret deployed 1531 | -10/Exiles | DAS Turret deployed 1557 | -10/Exiles | DAS Turret deployed 1576 | -10/Exiles | Attacked by the Exiles 1606 | -10/Exiles | Discovered new exit (range 10) 1668 | -10/Exiles | Entered Mines 1774 | -9/Mines | Discovered new exit (range 15) 1958 | -9/Mines | Entered Materials 1958 | -8/Materials | Accompanied by 2 allies 1958 | -8/Materials | Evolved 4 slots: Propulsion x1, Utility x3 1963 | -8/Materials | Led the pair of lost Derelicts to an unsafe place 1998 | -8/Materials | Identified exit to Storage 2358 | -8/Materials | Entered Storage 2429 | -8/Storage | Build established: Scavenger-Mutant 2564 | -8/Storage | Repaired Lgt. Treads 2683 | -8/Storage | Destroyed 9 combat bots 2685 | -8/Storage | Lost 4 parts (2n1u1w) 2813 | -8/Storage | Garrison activated, responded to threat 3158 | -8/Storage | Discovered new exit (range 16) 4075 | -8/Storage | Entered Factory 4075 | -7/Factory | Evolved 2 slots: Weapon x2 4152 | -7/Factory | Discovered new exit (range 15) 4232 | -7/Factory | Discovered new exit (range 14) 4366 | -7/Factory | Fabricated A-02 Transporter (x1) 4399 | -7/Factory | Build established: Scavenger-Tank 5221 | -7/Factory | Build established: Scavenger-Gunner 5279 | -7/Factory | Garrison activated, responded to threat 5849 | -7/Factory | Cargo convoy interrupted 6075 | -7/Factory | First assault squad dispatched 6267 | -7/Factory | Destroyed 7 combat bots 6345 | -7/Factory | Found Prototype Device 6772 | -7/Factory | Repaired Enh. Autogun 6934 | -7/Factory | Identified exit to Lower Caves 6942 | -7/Factory | Entered Lower Caves 7304 | -7/Lower Caves | Attracted the attention of an 0b10 outpost 7481 | -7/Lower Caves | Attracted the attention of an 0b10 checkpoint 7782 | -7/Lower Caves | Spotted B-75 Beast 7802 | -7/Lower Caves | Core integrity fell below 50% 7804 | -7/Lower Caves | Allies destroyed B-75 Beast 7825 | -7/Lower Caves | A Derelict revealed a hidden shortcut to a safe place 7832 | -7/Lower Caves | Lost 5 parts (1n2u2w) 7855 | -7/Lower Caves | Entered Zion 7855 | -7/Zion | Accompanied by 2 allies 7967 | -7/Zion | System corruption cleaned by Quarantine Array 8045 | -7/Zion | Given the Hacking Drone Bay 8163 | -7/Zion | Build established: Scavenger-Mutant 8193 | -7/Zion | Discovered new exit (range 16) 8404 | -7/Zion | Learned location of Quarantine (-3) 8597 | -7/Zion | Learned location of Data Miner (-6) 8835 | -7/Zion | Learned 8 Factory zone layouts 9387 | -7/Zion | Given A8's code to call for help 9667 | -7/Zion | Found Prototype Processor 9667 | -7/Zion | Identified Exp. Core Analyzer 9673 | -7/Zion | Found Prototype Hackware 9674 | -7/Zion | Identified Exp. System Shield 9679 | -7/Zion | Found Prototype Processor 9679 | -7/Zion | Identified Exp. Armor Integrity Analyzer 9683 | -7/Zion | Found Exp. Armor Integrity Analyzer 9699 | -7/Zion | Found Prototype Processor 9699 | -7/Zion | Identified Exp. Target Analyzer 9964 | -7/Zion | Build established: Gunner 10088 | -7/Zion | Visited the Megawrench Repair Shop 10092 | -7/Zion | Megawrench repaired 10 parts 10491 | -7/Zion | Found Prototype Device 10845 | -7/Zion | Imprinted 10847 | -7/Zion | Declared Zion's savior 11312 | -7/Zion | Entered Proximity Caves 11312 | -6/Proximity Caves | Accompanied by 6 allies 11676 | -6/Proximity Caves | Build established: Scavenger-Gunner 12151 | -6/Proximity Caves | Spotted B-75 Beast 12221 | -6/Proximity Caves | Learned location of Extension (-6) 12312 | -6/Proximity Caves | Attracted the attention of an 0b10 outpost 12370 | -6/Proximity Caves | Destroyed 13 combat bots 12644 | -6/Proximity Caves | Discovered new exit (range 5) 12684 | -6/Proximity Caves | Entered Factory 12684 | -6/Factory | Accompanied by 2 allies 12684 | -6/Factory | Evolved 2 slots: Utility x2 12870 | -6/Factory | Fabricated Kinecellerator (x1) 13099 | -6/Factory | Retrieved Zion intel report: Main Access 13099 | -6/Factory | Identified exit to Factory 13312 | -6/Factory | Retrieved Zion intel report: Component Schematics 13355 | -6/Factory | Discovered new exit (range 11) 14198 | -6/Factory | Terminal network hard line cut 14428 | -6/Factory | Discovered new exit (range 5) 14442 | -6/Factory | Entered Extension 14620 | -6/Extension | Rescued a captive Derelict 14621 | -6/Extension | Rescued a captive Derelict 14741 | -6/Extension | Rescued A7 14800 | -6/Extension | Energy Cycler disabled 14801 | -6/Extension | Rescued a captive Derelict 14801 | -6/Extension | Rescued a captive Derelict 14801 | -6/Extension | Rescued a captive Derelict 14801 | -6/Extension | Rescued a captive Derelict 14802 | -6/Extension | Rescued a captive Derelict 14805 | -6/Extension | Rescued a captive Derelict 14806 | -6/Extension | Rescued a captive Derelict 15037 | -6/Extension | Build established: Scavenger-Mutant 15317 | -6/Extension | Spotted B-75 Beast 15328 | -6/Extension | Allies destroyed B-75 Beast 15344 | -6/Extension | Build established: Scavenger-Gunner 15351 | -6/Extension | Spotted B-75 Beast 15361 | -6/Extension | Destroyed B-75 Beast 15364 | -6/Extension | Discovered exit to Factory (range 15) 15417 | -6/Extension | Disrupted transfer network 15768 | -6/Extension | Discovered new exit (range 15) 15771 | -6/Extension | Discovered exit to Factory (range 15) 15828 | -6/Extension | Entered Cetus 15828 | -6/Cetus | Accompanied by 1 ally (A7) 15833 | -6/Cetus | Acquired a Cetus Manufacturing Module code from A7 15874 | -6/Cetus | Spotted Cetus Guard 15874 | -6/Cetus | Spotted Cetus Guard 15879 | -6/Cetus | Spotted Cetus Guard 15879 | -6/Cetus | Spotted Cetus Guard 15880 | -6/Cetus | Allies destroyed Cetus Guard 15882 | -6/Cetus | Destroyed Cetus Guard 15888 | -6/Cetus | Allies destroyed Cetus Guard 15892 | -6/Cetus | Destroyed Cetus Guard 16084 | -6/Cetus | Started Cetus Manufacturing Module 16109 | -6/Cetus | Manufactured an Enhanced Grunt 16134 | -6/Cetus | Manufactured an Enhanced Grunt 16142 | -6/Cetus | Discovered new exit (range 16) 16159 | -6/Cetus | Manufactured an Enhanced Grunt 16184 | -6/Cetus | Manufactured an Enhanced Grunt 16194 | -6/Cetus | Spotted Cetus Guard 16194 | -6/Cetus | Spotted Cetus Guard 16196 | -6/Cetus | Spotted Cetus Guard 16206 | -6/Cetus | Allies destroyed Cetus Guard 16208 | -6/Cetus | Allies destroyed Cetus Guard 16209 | -6/Cetus | Manufactured an Enhanced Grunt 16213 | -6/Cetus | Allies destroyed Cetus Guard 16214 | -6/Cetus | Spotted Cetus Guard 16219 | -6/Cetus | Allies destroyed Cetus Guard 16233 | -6/Cetus | Discovered exit to Factory (range 15) 16250 | -6/Cetus | Scared off Revision 17 16269 | -6/Cetus | Identified Hacking Drone Bay 16482 | -6/Cetus | Entered Archives 16482 | -6/Archives | Accompanied by 3 allies (A7) 16557 | -6/Archives | Discovered new exit (range 15) 16594 | -6/Archives | Entered Hub_04(d) 16594 | -6/Hub_04(d) | Accompanied by 2 allies 16607 | -6/Hub_04(d) | Discovered exit to Factory (range 16) 16705 | -6/Hub_04(d) | Discovered exit to Factory (range 9) 16755 | -6/Hub_04(d) | Retrieved Zion intel report: Active Terminals 16756 | -6/Hub_04(d) | Zion Light squad teleported in 16809 | -6/Hub_04(d) | Garrison activated, responded to threat 16834 | -6/Hub_04(d) | Retrieved Zion intel report: Active Garrisons 16856 | -6/Hub_04(d) | Retrieved Zion intel report: Component Schematics 16884 | -6/Hub_04(d) | System corruption reached 10% 17294 | -6/Hub_04(d) | First assault squad dispatched 17316 | -6/Hub_04(d) | Network Hub disabled 17364 | -6/Hub_04(d) | System corruption reached 30% 17369 | -6/Hub_04(d) | Entered Factory 17369 | -5/Factory | Evolved 2 slots: Propulsion x1, Utility x1 17639 | -5/Factory | Identified exit to DSF 17639 | -5/Factory | Entered DSF 17658 | -5/DSF | Additional patrols routed to DSF 17716 | -5/DSF | Discovered new exit (range 16) 17924 | -5/DSF | Entered Factory 17924 | -4/Factory | Evolved 2 slots: Power x1, Utility x1 18006 | -4/Factory | Garrison activated, responded to threat 18683 | -4/Factory | Retrieved Zion intel report: Active Garrisons 18957 | -4/Factory | First assault squad dispatched 19185 | -4/Factory | Destroyed 11 combat bots 19192 | -4/Factory | Lost 3 parts (3w) 19279 | -4/Factory | Retrieved Zion intel report: Depthwide Sectors/0 19280 | -4/Factory | Zion Heavy squad teleported in 19319 | -4/Factory | Sucked down chute 19319 | -4/Factory | Entered Waste 19330 | -4/Waste | 2 allies followed down the chute 19334 | -4/Waste | EMP discharged 19334 | -4/Waste | System corruption reached 10% 19335 | -4/Waste | Spotted C-40 Crusher 19337 | -4/Waste | Spotted C-40 Crusher 19344 | -4/Waste | Allies destroyed C-40 Crusher 19351 | -4/Waste | Allies destroyed C-40 Crusher 19352 | -4/Waste | Spotted C-40 Crusher 19355 | -4/Waste | Allies destroyed C-40 Crusher 19358 | -4/Waste | Spotted C-40 Crusher 19363 | -4/Waste | Destroyed C-40 Crusher 19387 | -4/Waste | Spotted C-40 Crusher 19389 | -4/Waste | Destroyed C-40 Crusher 19396 | -4/Waste | Spotted C-40 Crusher 19403 | -4/Waste | Allies destroyed C-40 Crusher 19410 | -4/Waste | Found Damper Plating 19434 | -4/Waste | EMP discharged 19460 | -4/Waste | Discovered new exit (range 23) 19508 | -4/Waste | Entered Factory 19508 | -4/Factory | Accompanied by 2 allies 19896 | -4/Factory | Discovered new exit (range 11) 19912 | -4/Factory | Entered Armory 20141 | -4/Armory | Retrieved Zion intel report: Active Terminals 20142 | -4/Armory | Zion Heavy squad teleported in 20411 | -4/Armory | Zion Heavy squad teleported in 20504 | -4/Armory | Build established: Gunner 20632 | -4/Armory | Zion Light squad teleported in 20912 | -4/Armory | First assault squad dispatched 21005 | -4/Armory | Destroyed 10 combat bots 21033 | -4/Armory | Zion Infowar Resupply teleported in 21049 | -4/Armory | Found Prototype Device 21049 | -4/Armory | Identified Exp. ECM Suite 21089 | -4/Armory | Zion Fire squad teleported in 21258 | -4/Armory | Discovered new exit (range 7) 21292 | -4/Armory | Destroyed 8 combat bots 21411 | -4/Armory | Discovered new exit (range 3) 21441 | -4/Armory | Terminal network hard line cut 21462 | -4/Armory | Entered Lab 21462 | -4/Lab | Discovered new exit (range 9) 21495 | -4/Lab | Detected for breach 21496 | -4/Lab | Gained access to the hidden lab's interior 21501 | -4/Lab | Confronted by A5 21507 | -4/Lab | System corruption reached 30% 21515 | -4/Lab | Destroyed A5 21551 | -4/Lab | Found Alien Artifact 21551 | -4/Lab | Identified Core Reset Matrix 21551 | -4/Lab | Used Core Reset Matrix 21555 | -4/Lab | Sensed 3 artifacts in vicinity 21570 | -4/Lab | Discovered new exit (range 18) 21595 | -4/Lab | Found Prototype Energy Gun 21595 | -4/Lab | Identified Hyp. EM Gauss Rifle 21607 | -4/Lab | Found Prototype Protection 21607 | -4/Lab | Identified Exp. Powered Armor 21684 | -4/Lab | Found Core Expander 21684 | -4/Lab | Installed Core Expander, added new Weapon slot 21697 | -4/Lab | Found Integrated Mediator 21697 | -4/Lab | Installed Integrated Mediator, increased core attachment efficiency. 21710 | -4/Lab | Found Transdimensional Reconstructor 21964 | -4/Lab | Unable to decrypt terminal 22117 | -4/Lab | Found Prototype Hackware 22233 | -4/Lab | Build established: Alien-Gunner 22644 | -4/Lab | Unable to decrypt terminal 22658 | -4/Lab | Entered Research 22658 | -3/Research | Evolved 2 slots: Utility x2 23155 | -3/Research | Retrieved Zion intel report: Prototype Schematics 23156 | -3/Research | Zion Thermal Resupply teleported in 23494 | -3/Research | Intercept squad dispatched 23503 | -3/Research | Spotted Tracker 23503 | -3/Research | Spotted Tracker 23517 | -3/Research | Destroyed Tracker 23528 | -3/Research | Destroyed Tracker 23531 | -3/Research | Spotted Combat Programmer 23540 | -3/Research | Destroyed Combat Programmer 23588 | -3/Research | Spotted Combat Programmer 23592 | -3/Research | Destroyed Combat Programmer 23926 | -3/Research | Terminal network hard line cut 24085 | -3/Research | Spotted B-86 Titan 24096 | -3/Research | Destroyed B-86 Titan 24187 | -3/Research | First assault squad dispatched 24277 | -3/Research | Destroyed 7 combat bots 24461 | -3/Research | Intercept squad dispatched 24473 | -3/Research | Spotted Tracker 24473 | -3/Research | Spotted Tracker 24480 | -3/Research | Spotted Combat Programmer 24486 | -3/Research | System corruption reached 10% 24486 | -3/Research | Destroyed Tracker 24493 | -3/Research | Warped through subspace 24608 | -3/Research | Discovered new exit (range 20) 24673 | -3/Research | Lost 3 parts (1p2w) 24709 | -3/Research | Entered Quarantine 24710 | -3/Quarantine | Detected hypermatrix surge 24710 | -3/Quarantine | Sensed 17 artifacts in vicinity 24772 | -3/Quarantine | Spotted Alpha 7 24789 | -3/Quarantine | Destroyed Alpha 7 24831 | -3/Quarantine | Found Sigix Terminator 24921 | -3/Quarantine | Found Core Reset Matrix 24923 | -3/Quarantine | Sensed 15 artifacts in vicinity 25014 | -3/Quarantine | Core integrity fell below 50% 25042 | -3/Quarantine | Lost 5 parts (1n2u2w) 25069 | -3/Quarantine | Fired Sigix Terminator 25069 | -3/Quarantine | Cryocooling Duct disabled 25070 | -3/Quarantine | Core integrity fell below 20% 25071 | -3/Quarantine | Identified Active Sensor Suite 25076 | -3/Quarantine | Scanned by Researcher 25084 | -3/Quarantine | Ambient heat levels rising (+20) 25084 | -3/Quarantine | Non-combat units ordered to evacuate 25100 | -3/Quarantine | Lost 5 parts (2p1n1u1w) 25102 | -3/Quarantine | Destroyed 7 combat bots 25164 | -3/Quarantine | Found Hpw. Transdimensional Reconstructor 25186 | -3/Quarantine | Warped through subspace 25370 | -3/Quarantine | Build established: Scavenger-Mutant 25459 | -3/Quarantine | First assault squad dispatched 25576 | -3/Quarantine | Spotted Fortress 25620 | -3/Quarantine | Lost 4 parts (1p1n2u) 25660 | -3/Quarantine | Discovered new exit (range 5) 25663 | -3/Quarantine | Identified exit to Section 7 25664 | -3/Quarantine | Entered Section 7 25665 | -3/Section 7 | Sensed 22 artifacts in vicinity 25927 | -3/Section 7 | Found Integrated Dissipator 25927 | -3/Section 7 | Installed Integrated Dissipator, increased core heat dissipation (+20) 26063 | -3/Section 7 | Released all parts (12) 26065 | -3/Section 7 | Destroyed by G-67 Veteran with Plasma Rifle Last Messages --------------- Investigation squad. 26035_ X HJNZAR/%B6HHCMOFN2=G6X/9OSYREX7 26053_ Detecting system override signal. 26059_ ALERT: Suspicious activity at Terminal 7014. Dispatching Investigation squad. 26059_ Detecting system override signal. 26063_ Released Wheel. 26063_ Released Terrain Scanner. 26063_ Released Structural Scanner. 26063_ Released Com. Mass Driver. 26063_ Released Exp. Thermal Generator. 26063_ Released Active Sensor Suite. 26063_ Released Hdn. Centrium Leg. 26063_ Released Mic. Antimatter Reactor. 26063_ Released Exp. Target Analyzer. 26063_ Released Exp. Core Analyzer. 26063_ Released Exp. Optical Array. 26063_ Released 0b10 Decoder Chip [Scout]. 26065_ O-32 Director: "IFF HANDSHAKE FAILED. SECURING TERMINAL." Map ----- +----------------------------------------------------+ | ?????????????????????????????????????????????????? | | ?????????????????????????????????????????????????? | | ?????????????????????????????????????????????????? | | ?????????????????????????????????????????????????? | | ?????????????????????????????????????????????????? | | ?????????????????????????????????????????????????? | | ?????????????????????????????????????????????????? | | ?????????????????????????????????????????????????? | | ?????????????????????????????????????????????????? | | ?????????????????????????????????????????????????? | | ?????????????????????????????????????????????????? | | ?????????????????????????????????H???????????????? | | ?????????????????????????????????????????????????? | | ?????????????????????????????????????????????????? | | ?????????????????????????????????????????????????? | | ?????????????????????????????????????????????????? | | ?????????????????????????????????????????????????? | | ?????????????????????????????????????????????????? | | ?????????????????????????????????????????????????? | | ???????????????#????#????????????????????????????? | | ???????????????#T???#### ??????????????????????? | | ?????????? ##### "######################?????????? | | ?????????? gg g c ?????????? | | ????????? ????????? | | ????????? ????????? | | ????????? c o @ R ????????? | | ???? ?"?????????#######*##### #???????????????? | | ???????????????????####!##### ???????????????????? | | ???????#??????????####!=! # ???????????????????? | | ?????????????????#### #]="" # ???????????????????? | | ???????????#????#### ## "" # ???????????????????? | | ???????#?????#?#### ###! "" # ???????????????????? | | ??????????#?#?#### #### T" # ???????????????????? | | ################# ##### """ # ???????????????????? | | ################" ##### "" # ???????????????????? | | # "###?## # ???????????????????? | | # ####?## """ / ???????????????????? | | # ###??## """ # ???????????????????? | | # ##???## """ # ???????????????????? | | # """"" ##???## # ????????????????? | | # "" " ##???#####?###+##????????????????? | | # """ ##?#?### ? ? ????????????????? | | # " " ##??#????????????????????????????? | | # " ##???????????????????????????????? | | # ###????? ?? ????????????????????? | | ######/#/#######"####### ?"??????????????????????? | | ###### #######"###### ????????????????????????? | | ?#??## # # ????????????????????????? | | ###### # ##????????????????????????? | | ###### +^ = ##????????????????????????? | +----------------------------------------------------+ Best States ------------- Heat Dissipation 95 Energy Generation 45 Energy Capacity 600 Matter Stores 300 Matter Capacity 300 Sight Range 23 Robot Scan Range 20 Terrain Scan Range 18 Terrain Scan Density 10 ECM Strength 3 Jamming Range 16 Armor Coverage 3200 Resistance: KI 30 Resistance: EM 90 Core Shielding 40 Evasion (%) 55 Target Analysis 10 Core Analysis 8 Armor Integrity Analysis 50 Recoil Reduction 4 Energy Filtering 50 Particle Charging 30 Kinecelleration 30 Offensive Hacking 14 Defensive Hacking 10 Authchip Count 5 Item Schematics ----------------- None Robot Schematics ------------------ None Fabricated ------------ A-02 Transporter | x1 | -7/Factory | Preloaded Kinecellerator | x1 | -6/Factory | Authchip Alien Tech Used ----------------- Core Reset Matrix Core Expander Integrated Mediator Transdimensional Reconstructor Sigix Terminator High-powered Transdimensional Reconstructor Integrated Dissipator Achievements -------------- None Challenges ------------ None Game ------ Seed CatalystDisruptionShield Manual? 0 Play Time 02:49:34 Cumulative 608.2 hours Start 2022.04.16 @ 19:20:49 End 2022.04.16 @ 22:49:21 Sessions 1 Manual Loads 0 Difficulty Rogue Special Mode None Game No. 415 Rogue 408 Adventurer 0 Explorer 7 Win Type - Total 37 Types 11/4/15/2/0/1/2/1/1 Lore% 86 Gallery% 94 Achievement% 82 Wizard Run 0 Options --------- ASCII 0 Keyboard 0 Movement Numpad Keybinds 0 Fullscreen 1 Font 18/X11Bold Map View 76x50 Tactical HUD 1 Map Filters NONE Filters NONE Steam 1 RUN: 2fd3449d-75fb-4143-9c59-13b9c6e089b6